{"text_format":"1","workbook":"xlsx","n_sheets":2,"sheets":["schools","Sheet1"],"not_rendered":{"charts":0,"images":0,"macros":1,"external_links":0,"defined_names":1,"comments":0,"pivot_tables":0},"unopened":[],"bounds":{"document_bytes":16777216,"sheet_cells":100000,"rows_first":2000,"rows_last":500,"rows_between":2000,"halvings":0,"cell_chars":16384,"cell_head_chars":4096},"cells_cut":0,"cells_raw":0,"read":"whole","date_system":"1900"}

{"sheet":"schools","index":0,"n_rows":160,"n_cols":8,"rows_kept":160,"cut":false,"hidden":false,"merged":[[1,7,1,8]]}
["اسم المدرسة","رقم المدرسة",null,null,"اسم المعلم","اسم المدرسة ","رقم المدرسة"]
["روضة بسمة ث  للبنين","111958",null,null,null,"روضة بسمة ث  للبنين",{"$f":"IF(F2=\"\",\"\",VLOOKUP(F2,$A$2:$B$160,2,0))","v":"111958"},"وهكذا على باقي الخلايا"]
["الاشرفية  ونايفة ث ذكور","111959",null,null,null,"روضة بسمة ث  للبنين",{"$f":"IF(F3=\"\",\"\",VLOOKUP(F3,$A$2:$B$160,2,0))","v":"111958"}]
["الكوم الاحمر ث بنين","111960",null,null,null,"الاشرفية  ونايفة ث ذكور",{"$f":"IF(F4=\"\",\"\",VLOOKUP(F4,$A$2:$B$160,2,0))","v":"111959"}]
["ام الجمال ث ش للبنين","111961",null,null,null,"روضة بسمة ث  للبنين","111958"]
["ام القطين ث بنين","111962",null,null,null,"الكوم الاحمر ث بنين","111960"]
["الرفاعيات ث بنين","111964",null,null,null,"روضة بسمة ث  للبنين","111958"]
["الحميدية الثانوية للبنين","111965",null,null,null,null,""]
["المنارة ث بنين","111966",null,null,null,null,""]
["عمره وعميرة ث ش بنين","111967",null,null,null,null,""]
["الدفيانة ث ش بنين","111968",null,null,null,null,""]
["خشاع والحسينية ث ذكور","111969",null,null,null,null,""]
["قاسم ث  بنين","111970",null,null,null,null,""]
["تل الرماح الثانوية بنين","111971",null,null,null,null,""]
["العاقب ث بنين","111972",null,null,null,null,""]
["سبع اصير ث بنين","111973",null,null,null,null,""]
["الصالحية ث ش بنين","111974",null,null,null,null,""]
["زملة الامير غازي ث بنين","111975",null,null,null,null,""]
["صبحا س للبنين","111976",null,null,null,null,""]
["صبحية س بنين","111977",null,null,null,null,""]
["روضة حمزة ث بنين","111978",null,null,null,null,""]
["السعيدية ث بنين","111979",null,null,null,null,""]
["صبحا ث بنات","111982",null,null,null,null,""]
["الصفاوي ث المختلطة","111983",null,null,null,null,""]
["ام الجمال ث ش م","111984",null,null,null,null,""]
["عمره وعميره ث  ش م","111985",null,null,null,null,""]
["الكوم الاحمر ث م","111986",null,null,null,null,""]
["روضة الاميرة بسمة ث ش بنات","111987",null,null,null,null,""]
["المكيفتة ث م","111988",null,null,null,null,""]
["قاسم ث بنات","111989",null,null,null,null,""]
["العاقب ث م","111990",null,null,null,null,""]
["سبع اصير ث م","111991",null,null,null,null,""]
["الرفاعيات ث م","111992",null,null,null,null,""]
["صبحية ث بنات","111993",null,null,null,null,""]
["روضة الاميرعلي ث م","111994",null,null,null,null,""]
["المنارة ث م","111995",null,null,null,null,""]
["صبحا س م","111996",null,null,null,null,""]
["روضة الامير حمزة بن الحسين ث م","111997",null,null,null,null,""]
["الرويشد ث م","111998",null,null,null,null,""]
["ام القطين ث المختلطة","111999",null,null,null,null,""]
["الاشرفية الثانوية الشاملة المختلطة","112000",null,null,null,null,""]
["دير الكهف ث م","112002",null,null,null,null,""]
["الجبية ث المختلطة","112003",null,null,null,null,""]
["كوم الرف س م","112004",null,null,null,null,""]
["تل ارماح ث م","112005",null,null,null,null,""]
["دير الكهف ث بنين","112006",null,null,null,null,""]
["الخشاع والحسينية س م","112007",null,null,null,null,""]
["كوم الرف ث بنين","112008",null,null,null,null,""]
["منشية القنو ث بنين","112009",null,null,null,null,""]
["زملة الامير غازي ث مختلطة","112010",null,null,null,null,""]
["البشرية الثانوية بنين","112011",null,null,null,null,""]
["البستانة ث بنين","112013",null,null,null,null,""]
["روضة الامير علي بن الحسين ث بنين","112014",null,null,null,null,""]
["السعيدية ث م","112015",null,null,null,null,""]
["رحبة ركاد ث بنين","112016",null,null,null,null,""]
["رسم الحصان الاساسية للبنين","112017",null,null,null,null,""]
["حمراء السحيم ث بنين","112019",null,null,null,null,""]
["ام حسين س بنين","112020",null,null,null,null,""]
["حميدية المساعيد س م","112021",null,null,null,null,""]
["حي العودة س م","112022",null,null,null,null,""]
["المعزولة س م","112023",null,null,null,null,""]
["الرفاعيات الشمالية س م","112024",null,null,null,null,""]
["خشاع القن س بنين","112025",null,null,null,null,""]
["مدور القن س م","112026",null,null,null,null,""]
["السعادة س م الحي الشرقي","112028",null,null,null,null,""]
["المنيصة ث بنين","112029",null,null,null,null,""]
["الثلاج س م","112030",null,null,null,null,""]
["حي الامير عبدالله س م","112031",null,null,null,null,{"$f":"IF(F68=\"\",\"\",VLOOKUP(F68,$A$2:$B$160,2,0))","v":""}]
["منشية الغياث ث بنين","112032",null,null,null,null,""]
["البشرية ث م","112033",null,null,null,null,""]
["الرحمات س م","112034",null,null,null,null,""]
["منشية القبلان س م","112035",null,null,null,null,""]
["طيبة المساعيد س م","112036",null,null,null,null,""]
["المنارة ث بنين /الحي الشرقي","112037",null,null,null,null,""]
["حي المداحلة س م","112038",null,null,null,null,""]
["الحرارة س بنين","112039",null,null,null,null,""]
["الكوم الاحمر س م اولى","112040",null,null,null,null,""]
["نزهة الروضة س بنين","112041",null,null,null,null,""]
["الجبية الثانوية للبنين","112042",null,null,null,null,""]
["صالحية النعيم ث م","112043",null,null,null,null,""]
["الفيصلية س بنين","112044",null,null,null,null,""]
["نايفة ث م","112045",null,null,null,null,""]
["مثناة راجل .س. بنين","112046",null,null,null,null,""]
["البستانة ث ش المختلطة","112047",null,null,null,null,""]
["الصالحية ث م","112048",null,null,null,null,""]
["الحميدية الغربية س م","112049",null,null,null,null,""]
["الدفيانة ث م","112050",null,null,null,null,""]
["رحبة ركاد ث م","112051",null,null,null,null,""]
["دير القن س م","112052",null,null,null,null,""]
["السعادة  ث م","112053",null,null,null,null,""]
["منشية الغياث ث م","112054",null,null,null,null,""]
["عمره وعميره س م","112055",null,null,null,null,""]
["الحميدية س م الحي الشرقي","112056",null,null,null,null,""]
["روضة الامير حسين بن عبدالله س م","112058",null,null,null,null,""]
["ارينبة س م","112059",null,null,null,null,""]
["حي البريك س م","112061",null,null,null,null,""]
["الهاشمية س م","112062",null,null,null,null,""]
["المنصورة الشرقية س م","112063",null,null,null,null,""]
["روضة البندان س م","112064",null,null,null,null,""]
["روضةبسمة س م الثانية","112065",null,null,null,null,""]
["روضة بسمة س م اولى","112066",null,null,null,null,""]
["المنيصة ث م","112067",null,null,null,null,""]
["الكوم الا حمر س الثانية مختلط","112068",null,null,null,null,""]
["حمراء السحيم ث م","112069",null,null,null,null,""]
["ام القطين س م","112070",null,null,null,null,""]
["روضة الاميرة بسمة س م الحي الشرقي","112071",null,null,null,null,""]
["روضة بسمة س م الحي الغربي","112072",null,null,null,null,""]
["الرويشد س م  الحي الشرقي","112073",null,null,null,null,""]
["المكيفتة س بنين","112075",null,null,null,null,""]
["الصفاوي س م","112076",null,null,null,null,""]
["البشرية س م","112077",null,null,null,null,""]
["البادية الشمالية المهنية  ث بنين","112078",null,null,null,null,""]
["منشية الخليفة س م","112079",null,null,null,null,""]
["الزهراء ث المختلطة","112080",null,null,null,null,""]
["منشية القنو س م","113109",null,null,null,null,""]
["دير الكهف س م","113110",null,null,null,null,""]
["عالية الشويعر س م","113111",null,null,null,null,""]
["البشرية س بنين","113112",null,null,null,null,""]
["عمر بن الخطاب س بنين","113113",null,null,null,null,""]
["خالد بن الوليد س م","113114",null,null,null,null,""]
["الصالحية س م","113115",null,null,null,null,""]
["صبحا س بنات الحي الشرقي","113172",null,null,null,null,""]
["السعادة الغربية ث بنين","113173",null,null,null,null,""]
["الحميدية س بنين","113253",null,null,null,null,""]
["الكوم الاحمر س بنين","113254",null,null,null,null,""]
["عمره وعميرة س م الحي الشرقي","113255",null,null,null,null,""]
["ام القطين س م الحي الشرقي","113257",null,null,null,null,""]
["منشية الخميس س م","113259",null,null,null,null,""]
["ام الجمال س م الحي الشرقي","113260",null,null,null,null,""]
["الصالحية س م الحي الشرقي","113572",null,null,null,null,""]
["ام القطين س بنين","113573",null,null,null,null,""]
["قرية الخير س م","113574",null,null,null,null,{"$f":"IF(F132=\"\",\"\",VLOOKUP(F132,$A$2:$B$160,2,0))","v":""}]
["المنارة ث م الحي الشرقي","113602",null,null,null,null,""]
["الدفيانة س م الحي الغربي","113603",null,null,null,null,""]
["حي العودة  س للبنين","113609",null,null,null,null,""]
["الجبية س م","113654",null,null,null,null,""]
["سليمان الموسى س بنين","113655",null,null,null,null,""]
["الحرارة س بنات","113656",null,null,null,null,""]
["روضة الامير حمزة س م","113674",null,null,null,null,""]
["الاشرفية س م","113740",null,null,null,null,""]
["صبحية س م","113741",null,null,null,null,""]
["نزهة الروضة س م","113742",null,null,null,null,""]
["خشاع القن س م","113744",null,null,null,null,""]
["مدور القن س للبنبن","113829",null,null,null,null,""]
["حمراء السحيم س م","113830",null,null,null,null,""]
["منشية الغياث الاساسية/الحي الجنوبي","113842",null,null,null,null,""]
["الشهيد عبدالله النزهان الاساسية للبنين","113843",null,null,null,null,""]
["روضة الامير حسين بن عبدالله س بنين","113906",null,null,null,null,""]
["السعيدية س م","113907",null,null,null,null,""]
["روضة بسمة الاساسية للبنين","114066",null,null,null,null,""]
["منشية القبلان الاساسية للبنين","114067",null,null,null,null,""]
["البشرية الاساسية المختلطة الحي الشرقي","114068",null,null,null,null,""]
["مكيفتة الاساسية اناث","114069",null,null,null,null,""]
["رسم الحصان الاساسية للبنات","114132",null,null,null,null,""]
["طيبة المساعيد الاساسية للبنين","114148",null,null,null,null,""]
["مثناة راجل الاساسية للبنات","114149",null,null,null,null,""]
["ام حسين الاساسية المختلطة","114150",null,null,null,null,""]
["الخشاع والحسينية س م الحي الشمالي","114203",null,null,null,null,""]
["نزهة الروضة الاساسية المسائية","114368",null,null,null,null,""]
["الصالحية الأساسية للبنين","114385",null,null,null,null,""]

{"sheet":"Sheet1","index":1,"n_rows":0,"n_cols":0,"rows_kept":0,"cut":false,"hidden":true,"merged":[]}